Workbook

Sheet Sheet1
B1: A Function and its Inverse
B3: This graphing utility produces the graph
B4: of any increasing or decreasing function
D5: y = f(x)
B6: along with the graph of the inverse function
B7: on any interval from x = a to x = b.
A9: Enter the function in terms of x: f(x) = | F9: x^3
A12: Now enter the interval for x:
C13: xMin = | D13: 0
C14: xMax = | D14: 2
B16: =IF(Sheet2!I106="OK","","This function is not strictly increasing or decreasing on this interval") -> 
C17: =IF(Sheet2!I106="OK","","so it does not have an inverse on this interval") -> 
J19: The graph of the function y = f(x) = | N19: =F9 -> x^3
A20: Click each item below for suggestions and investigations | J20: =IF(Sheet2!I106="OK"," and its inverse ","") -> and its inverse | M20: f -1
B21: Item 1
B22: Item 2
B23: Item 3
A27: To access/download all the DIGMath Apps for Calculus
A28: Click this link: | C28: DIGMath for Calculus
A30: Created by: Sheldon P. Gordon
A31: Farmingdale State College
A32: Development of this module was supported by the
A33: NSF's Division of Undergraduate Education
A34: under grants DUE-0310123 and DUE-0442160.

Sheet Sheet2
C1: x | D1: y = f(x) | E1: x^-1 | F1: y^-1 | G1: IncreasingDecreasing
D2: =Sheet1!#REF! -> 
C3: =Sheet1!D13 -> 0 | D3: =x^3 -> 0 | E3: =IF($I$106="OK",D3,D$3) -> 0 | F3: =IF($I$106="OK",C3,C$3) -> 0
C4: =C3+Sheet2!B$12 -> 0.0198019802 | D4: 7.764721183e-06 | E4: =IF($I$106="OK",D4,D$3) -> 7.764721183e-06 | F4: =IF($I$106="OK",C4,C$3) -> 0.0198019802 | G4: =IF(D4>=D3,0,1) -> 0 | H4: =IF(D4<=D3,0,1) -> 1
C5: =C4+Sheet2!B$12 -> 0.0396039604 | D5: 6.211776947e-05 | E5: 6.211776947e-05 | F5: =IF($I$106="OK",C5,C$3) -> 0.0396039604 | G5: =IF(D5>=D4,0,1) -> 0 | H5: =IF(D5<=D4,0,1) -> 1
C6: =C5+Sheet2!B$12 -> 0.05940594059 | D6: 0.000209647472 | E6: 0.000209647472 | F6: =IF($I$106="OK",C6,C$3) -> 0.05940594059 | G6: 0 | H6: 1
C7: =C6+Sheet2!B$12 -> 0.07920792079 | D7: 0.0004969421557 | E7: 0.0004969421557 | F7: =IF($I$106="OK",C7,C$3) -> 0.07920792079 | G7: 0 | H7: 1
C8: =C7+Sheet2!B$12 -> 0.09900990099 | D8: 0.0009705901479 | E8: 0.0009705901479 | F8: 0.09900990099 | G8: 0 | H8: 1
C9: =C8+Sheet2!B$12 -> 0.1188118812 | D9: 0.001677179776 | E9: 0.001677179776 | F9: 0.1188118812 | G9: 0 | H9: 1
C10: =C9+Sheet2!B$12 -> 0.1386138614 | D10: 0.002663299366 | E10: 0.002663299366 | F10: 0.1386138614 | G10: 0 | H10: 1
C11: =C10+Sheet2!B$12 -> 0.1584158416 | D11: 0.003975537246 | E11: 0.003975537246 | F11: 0.1584158416 | G11: 0 | H11: 1
A12: delta x = | B12: =(Sheet1!D14-Sheet1!D13)/101 -> 0.0198019802 | C12: =C11+Sheet2!B$12 -> 0.1782178218 | D12: 0.005660481743 | E12: 0.005660481743 | F12: 0.1782178218 | G12: 0 | H12: 1
C13: =C12+Sheet2!B$12 -> 0.198019802 | D13: 0.007764721183 | E13: 0.007764721183 | F13: 0.198019802 | G13: 0 | H13: 1
C14: =C13+Sheet2!B$12 -> 0.2178217822 | D14: 0.0103348439 | E14: 0.0103348439 | F14: 0.2178217822 | G14: 0 | H14: 1
C15: =C14+Sheet2!B$12 -> 0.2376237624 | D15: 0.0134174382 | E15: 0.0134174382 | F15: 0.2376237624 | G15: 0 | H15: 1
C16: =C15+Sheet2!B$12 -> 0.2574257426 | D16: 0.01705909244 | E16: 0.01705909244 | F16: 0.2574257426 | G16: 0 | H16: 1
C17: =C16+Sheet2!B$12 -> 0.2772277228 | D17: 0.02130639493 | E17: 0.02130639493 | F17: 0.2772277228 | G17: 0 | H17: 1
C18: =C17+Sheet2!B$12 -> 0.297029703 | D18: 0.02620593399 | E18: 0.02620593399 | F18: 0.297029703 | G18: 0 | H18: 1
C19: =C18+Sheet2!B$12 -> 0.3168316832 | D19: 0.03180429797 | E19: 0.03180429797 | F19: 0.3168316832 | G19: 0 | H19: 1
C20: =C19+Sheet2!B$12 -> 0.3366336634 | D20: 0.03814807517 | E20: 0.03814807517 | F20: 0.3366336634 | G20: 0 | H20: 1
C21: =C20+Sheet2!B$12 -> 0.3564356436 | D21: 0.04528385394 | E21: 0.04528385394 | F21: 0.3564356436 | G21: 0 | H21: 1
C22: =C21+Sheet2!B$12 -> 0.3762376238 | D22: 0.0532582226 | E22: 0.0532582226 | F22: 0.3762376238 | G22: 0 | H22: 1
C23: =C22+Sheet2!B$12 -> 0.396039604 | D23: 0.06211776947 | E23: 0.06211776947 | F23: 0.396039604 | G23: 0 | H23: 1
C24: =C23+Sheet2!B$12 -> 0.4158415842 | D24: 0.07190908288 | E24: 0.07190908288 | F24: 0.4158415842 | G24: 0 | H24: 1
C25: =C24+Sheet2!B$12 -> 0.4356435644 | D25: 0.08267875116 | E25: 0.08267875116 | F25: 0.4356435644 | G25: 0 | H25: 1
C26: =C25+Sheet2!B$12 -> 0.4554455446 | D26: 0.09447336264 | E26: 0.09447336264 | F26: 0.4554455446 | G26: 0 | H26: 1
C27: =C26+Sheet2!B$12 -> 0.4752475248 | D27: 0.1073395056 | E27: 0.1073395056 | F27: 0.4752475248 | G27: 0 | H27: 1
C28: =C27+Sheet2!B$12 -> 0.495049505 | D28: 0.1213237685 | E28: 0.1213237685 | F28: 0.495049505 | G28: 0 | H28: 1
C29: =C28+Sheet2!B$12 -> 0.5148514851 | D29: 0.1364727395 | E29: 0.1364727395 | F29: 0.5148514851 | G29: 0 | H29: 1
C30: =C29+Sheet2!B$12 -> 0.5346534653 | D30: 0.1528330071 | E30: 0.1528330071 | F30: 0.5346534653 | G30: 0 | H30: 1
C31: =C30+Sheet2!B$12 -> 0.5544554455 | D31: 0.1704511594 | E31: 0.1704511594 | F31: 0.5544554455 | G31: 0 | H31: 1
C32: =C31+Sheet2!B$12 -> 0.5742574257 | D32: 0.1893737849 | E32: 0.1893737849 | F32: 0.5742574257 | G32: 0 | H32: 1
C33: =C32+Sheet2!B$12 -> 0.5940594059 | D33: 0.209647472 | E33: 0.209647472 | F33: 0.5940594059 | G33: 0 | H33: 1
C34: =C33+Sheet2!B$12 -> 0.6138613861 | D34: 0.2313188088 | E34: 0.2313188088 | F34: 0.6138613861 | G34: 0 | H34: 1
C35: =C34+Sheet2!B$12 -> 0.6336633663 | D35: =x^3 -> 0.2544343837 | E35: 0.2544343837 | F35: 0.6336633663 | G35: 0 | H35: 1
C36: =C35+Sheet2!B$12 -> 0.6534653465 | D36: 0.2790407852 | E36: 0.2790407852 | F36: 0.6534653465 | G36: 0 | H36: 1
C37: =C36+Sheet2!B$12 -> 0.6732673267 | D37: 0.3051846014 | E37: 0.3051846014 | F37: 0.6732673267 | G37: 0 | H37: 1
C38: =C37+Sheet2!B$12 -> 0.6930693069 | D38: 0.3329124207 | E38: 0.3329124207 | F38: 0.6930693069 | G38: 0 | H38: 1
C39: =C38+Sheet2!B$12 -> 0.7128712871 | D39: 0.3622708315 | E39: 0.3622708315 | F39: 0.7128712871 | G39: 0 | H39: 1
C40: =C39+Sheet2!B$12 -> 0.7326732673 | D40: 0.3933064221 | E40: 0.3933064221 | F40: 0.7326732673 | G40: 0 | H40: 1
C41: =C40+Sheet2!B$12 -> 0.7524752475 | D41: 0.4260657808 | E41: 0.4260657808 | F41: 0.7524752475 | G41: 0 | H41: 1
C42: =C41+Sheet2!B$12 -> 0.7722772277 | D42: 0.4605954959 | E42: 0.4605954959 | F42: 0.7722772277 | G42: 0 | H42: 1
C43: =C42+Sheet2!B$12 -> 0.7920792079 | D43: 0.4969421557 | E43: 0.4969421557 | F43: 0.7920792079 | G43: 0 | H43: 1
C44: =C43+Sheet2!B$12 -> 0.8118811881 | D44: 0.5351523487 | E44: 0.5351523487 | F44: 0.8118811881 | G44: 0 | H44: 1
C45: =C44+Sheet2!B$12 -> 0.8316831683 | D45: 0.575272663 | E45: 0.575272663 | F45: 0.8316831683 | G45: 0 | H45: 1
C46: =C45+Sheet2!B$12 -> 0.8514851485 | D46: 0.6173496871 | E46: 0.6173496871 | F46: 0.8514851485 | G46: 0 | H46: 1
C47: =C46+Sheet2!B$12 -> 0.8712871287 | D47: 0.6614300093 | E47: 0.6614300093 | F47: 0.8712871287 | G47: 0 | H47: 1
C48: =C47+Sheet2!B$12 -> 0.8910891089 | D48: 0.7075602178 | E48: 0.7075602178 | F48: 0.8910891089 | G48: 0 | H48: 1
C49: =C48+Sheet2!B$12 -> 0.9108910891 | D49: 0.7557869011 | E49: 0.7557869011 | F49: 0.9108910891 | G49: 0 | H49: 1
C50: =C49+Sheet2!B$12 -> 0.9306930693 | D50: 0.8061566474 | E50: 0.8061566474 | F50: 0.9306930693 | G50: 0 | H50: 1
C51: =C50+Sheet2!B$12 -> 0.9504950495 | D51: 0.8587160451 | E51: 0.8587160451 | F51: 0.9504950495 | G51: 0 | H51: 1
C52: =C51+Sheet2!B$12 -> 0.9702970297 | D52: 0.9135116825 | E52: 0.9135116825 | F52: 0.9702970297 | G52: 0 | H52: 1
C53: =C52+Sheet2!B$12 -> 0.9900990099 | D53: 0.9705901479 | E53: 0.9705901479 | F53: 0.9900990099 | G53: 0 | H53: 1
C54: =C53+Sheet2!B$12 -> 1.00990099 | D54: 1.02999803 | E54: 1.02999803 | F54: 1.00990099 | G54: 0 | H54: 1
C55: =C54+Sheet2!B$12 -> 1.02970297 | D55: 1.091781916 | E55: 1.091781916 | F55: 1.02970297 | G55: 0 | H55: 1
C56: =C55+Sheet2!B$12 -> 1.04950495 | D56: 1.155988396 | E56: 1.155988396 | F56: 1.04950495 | G56: 0 | H56: 1
C57: =C56+Sheet2!B$12 -> 1.069306931 | D57: 1.222664056 | E57: 1.222664056 | F57: 1.069306931 | G57: 0 | H57: 1
C58: =C57+Sheet2!B$12 -> 1.089108911 | D58: 1.291855487 | E58: 1.291855487 | F58: 1.089108911 | G58: 0 | H58: 1
C59: =C58+Sheet2!B$12 -> 1.108910891 | D59: 1.363609275 | E59: 1.363609275 | F59: 1.108910891 | G59: 0 | H59: 1
C60: =C59+Sheet2!B$12 -> 1.128712871 | D60: 1.43797201 | E60: 1.43797201 | F60: 1.128712871 | G60: 0 | H60: 1
C61: =C60+Sheet2!B$12 -> 1.148514851 | D61: 1.51499028 | E61: 1.51499028 | F61: 1.148514851 | G61: 0 | H61: 1
C62: =C61+Sheet2!B$12 -> 1.168316832 | D62: 1.594710672 | E62: 1.594710672 | F62: 1.168316832 | G62: 0 | H62: 1
C63: =C62+Sheet2!B$12 -> 1.188118812 | D63: 1.677179776 | E63: 1.677179776 | F63: 1.188118812 | G63: 0 | H63: 1
C64: =C63+Sheet2!B$12 -> 1.207920792 | D64: 1.762444179 | E64: 1.762444179 | F64: 1.207920792 | G64: 0 | H64: 1
C65: =C64+Sheet2!B$12 -> 1.227722772 | D65: 1.85055047 | E65: 1.85055047 | F65: 1.227722772 | G65: 0 | H65: 1
C66: =C65+Sheet2!B$12 -> 1.247524752 | D66: 1.941545238 | E66: 1.941545238 | F66: 1.247524752 | G66: 0 | H66: 1
C67: =C66+Sheet2!B$12 -> 1.267326733 | D67: =x^3 -> 2.03547507 | E67: 2.03547507 | F67: 1.267326733 | G67: 0 | H67: 1
C68: =C67+Sheet2!B$12 -> 1.287128713 | D68: 2.132386555 | E68: =IF($I$106="OK",D68,D$3) -> 2.132386555 | F68: 1.287128713 | G68: 0 | H68: 1
C69: =C68+Sheet2!B$12 -> 1.306930693 | D69: 2.232326281 | E69: 2.232326281 | F69: 1.306930693 | G69: =IF(D69>=D68,0,1) -> 0 | H69: =IF(D69<=D68,0,1) -> 1
C70: =C69+Sheet2!B$12 -> 1.326732673 | D70: 2.335340837 | E70: 2.335340837 | F70: 1.326732673 | G70: 0 | H70: 1
C71: =C70+Sheet2!B$12 -> 1.346534653 | D71: 2.441476811 | E71: 2.441476811 | F71: =IF($I$106="OK",C71,C$3) -> 1.346534653 | G71: 0 | H71: 1
C72: =C71+Sheet2!B$12 -> 1.366336634 | D72: 2.550780791 | E72: 2.550780791 | F72: 1.366336634 | G72: 0 | H72: 1
C73: =C72+Sheet2!B$12 -> 1.386138614 | D73: 2.663299366 | E73: 2.663299366 | F73: 1.386138614 | G73: 0 | H73: 1
C74: =C73+Sheet2!B$12 -> 1.405940594 | D74: 2.779079123 | E74: 2.779079123 | F74: 1.405940594 | G74: 0 | H74: 1
C75: =C74+Sheet2!B$12 -> 1.425742574 | D75: 2.898166652 | E75: 2.898166652 | F75: 1.425742574 | G75: 0 | H75: 1
C76: =C75+Sheet2!B$12 -> 1.445544554 | D76: 3.020608541 | E76: 3.020608541 | F76: 1.445544554 | G76: 0 | H76: 1
C77: =C76+Sheet2!B$12 -> 1.465346535 | D77: 3.146451377 | E77: 3.146451377 | F77: 1.465346535 | G77: 0 | H77: 1
C78: =C77+Sheet2!B$12 -> 1.485148515 | D78: 3.275741749 | E78: 3.275741749 | F78: 1.485148515 | G78: 0 | H78: 1
C79: =C78+Sheet2!B$12 -> 1.504950495 | D79: 3.408526246 | E79: 3.408526246 | F79: 1.504950495 | G79: 0 | H79: 1
C80: =C79+Sheet2!B$12 -> 1.524752475 | D80: 3.544851456 | E80: 3.544851456 | F80: 1.524752475 | G80: 0 | H80: 1
C81: =C80+Sheet2!B$12 -> 1.544554455 | D81: 3.684763967 | E81: 3.684763967 | F81: 1.544554455 | G81: 0 | H81: 1
C82: =C81+Sheet2!B$12 -> 1.564356436 | D82: 3.828310368 | E82: 3.828310368 | F82: 1.564356436 | G82: 0 | H82: 1
C83: =C82+Sheet2!B$12 -> 1.584158416 | D83: 3.975537246 | E83: 3.975537246 | F83: 1.584158416 | G83: 0 | H83: 1
C84: =C83+Sheet2!B$12 -> 1.603960396 | D84: 4.12649119 | E84: 4.12649119 | F84: 1.603960396 | G84: 0 | H84: 1
C85: =C84+Sheet2!B$12 -> 1.623762376 | D85: 4.281218789 | E85: 4.281218789 | F85: 1.623762376 | G85: 0 | H85: 1
C86: =C85+Sheet2!B$12 -> 1.643564356 | D86: 4.439766631 | E86: 4.439766631 | F86: 1.643564356 | G86: 0 | H86: 1
C87: =C86+Sheet2!B$12 -> 1.663366337 | D87: 4.602181304 | E87: 4.602181304 | F87: 1.663366337 | G87: 0 | H87: 1
C88: =C87+Sheet2!B$12 -> 1.683168317 | D88: 4.768509397 | E88: 4.768509397 | F88: 1.683168317 | G88: 0 | H88: 1
C89: =C88+Sheet2!B$12 -> 1.702970297 | D89: 4.938797497 | E89: 4.938797497 | F89: 1.702970297 | G89: 0 | H89: 1
C90: =C89+Sheet2!B$12 -> 1.722772277 | D90: 5.113092193 | E90: 5.113092193 | F90: 1.722772277 | G90: 0 | H90: 1
C91: =C90+Sheet2!B$12 -> 1.742574257 | D91: 5.291440074 | E91: 5.291440074 | F91: 1.742574257 | G91: 0 | H91: 1
C92: =C91+Sheet2!B$12 -> 1.762376238 | D92: 5.473887728 | E92: 5.473887728 | F92: 1.762376238 | G92: 0 | H92: 1
C93: =C92+Sheet2!B$12 -> 1.782178218 | D93: 5.660481743 | E93: 5.660481743 | F93: 1.782178218 | G93: 0 | H93: 1
C94: =C93+Sheet2!B$12 -> 1.801980198 | D94: 5.851268707 | E94: 5.851268707 | F94: 1.801980198 | G94: 0 | H94: 1
C95: =C94+Sheet2!B$12 -> 1.821782178 | D95: 6.046295209 | E95: 6.046295209 | F95: 1.821782178 | G95: 0 | H95: 1
C96: =C95+Sheet2!B$12 -> 1.841584158 | D96: 6.245607837 | E96: 6.245607837 | F96: 1.841584158 | G96: 0 | H96: 1
C97: =C96+Sheet2!B$12 -> 1.861386139 | D97: 6.449253179 | E97: 6.449253179 | F97: 1.861386139 | G97: 0 | H97: 1
C98: =C97+Sheet2!B$12 -> 1.881188119 | D98: 6.657277825 | E98: 6.657277825 | F98: 1.881188119 | G98: 0 | H98: 1
C99: =C98+Sheet2!B$12 -> 1.900990099 | D99: =x^3 -> 6.869728361 | E99: 6.869728361 | F99: 1.900990099 | G99: 0 | H99: 1
C100: =C99+Sheet2!B$12 -> 1.920792079 | D100: 7.086651377 | E100: 7.086651377 | F100: 1.920792079 | G100: 0 | H100: 1
C101: =C100+Sheet2!B$12 -> 1.940594059 | D101: 7.30809346 | E101: 7.30809346 | F101: 1.940594059 | G101: 0 | H101: 1
C102: =C101+Sheet2!B$12 -> 1.96039604 | D102: 7.5341012 | E102: 7.5341012 | F102: 1.96039604 | G102: 0 | H102: 1
C103: =C102+Sheet2!B$12 -> 1.98019802 | D103: 7.764721183 | E103: 7.764721183 | F103: 1.98019802 | G103: 0 | H103: 1
C104: =C103+Sheet2!B$12 -> 2 | D104: 8 | E104: 8 | F104: 2 | G104: 0 | H104: 1
G106: =SUM(G3:G104) -> 0 | H106: =SUM(H3:H104) -> 101 | I106: =IF(OR(G106=0,H106=0),"OK","NO") -> OK

Sheet Defining Function
A1: Defining a Function in Excel
A3: Computers have very specific rules you must follow when defining a function. If you don't, the program will either not work at all or will work incorrectly.
A5: 1. The Variable used should be the one named in the instruction, usually x, though sometimes y, t, Q (for an angle theta),
A6: or even x and y (for a function of two variables).
A8: 2. Order of Operations: There five arithmetic operations, addition (+), subtraction (-), multiplication (*), division (/), and exponentiation or power (^). When computers see any of these operation symbols, they perform the indicated steps in a very particular order. First, the power is done. Second, products and quotients of adjacent terms is done. Third, and last, sums and differences of adjacent terms are done. So, in 10*x^3 + 5*x – 7, say with x = 2, the first pass only calculates 2^3 and ignores the multiplications and the sums and differences to calculate 2^3 = 8. The second pass looks at 10*8 + 5*2 – 7 and only does the multiplications, so it produces 80 + 10 - 7. The third pass looks at the +’s and –‘s to produce 80 + 10 – 7 = 83.
A10: 3. Parentheses If you need an operation involving more than two adjacent terms, as in Ö4^3 + 6^2, the computer would take the square root of 4 to produce 2^3 + 6^2; it would then cube the 2 and square the 6 to produce 8 + 36; and finally it would add the 8 and the 36 to get 44. If you actually wanted the square root of the entire expression, you would need to use parentheses, as in Ö(4^3 + 6^2) to tell the computer to do all the operations inside the parentheses before taking the square root. Therefore, it would calculate (4^3 + 6^2) = 64 + 36 = 100 and then take the square root of Ö100 = 10.
A12: 4. Built-In Functions Computer programs have built-in functions for most common algebraic functions. In Excel, the square root function is denoted by SQRT(…), so SQRT(100) = 10. Alternatively, you could enter it as 100^.5 or 100^(1/2); notice that parentheses are needed to have the ½ done first. The common trig functions are SIN (…), COS (…), and TAN (…), where the arguments are automatically interpreted as being in radians, not degrees. The logarithm to the base 10 is represented by LOG (…) and the logarithm with the base e, known as the natural logarithm, is LN (…). The corresponding exponential function with base e is EXP (x). If x is the variable, then each of these would be SQRT (x), SIN (x), COS (x), TAN (x), LOG (x) (for log with base 10 ), LN (x) (for log with base e ), and EXP (x).

Sheet Sheet3
